bitfinex/quotes_ETHUSD_20260126
["timestamp","ask_amount","ask_price","bid_price","bid_amount"]
[1769440521174,12.90618158,2950.0,2947.6,0.02076268]
[1769440521372,12.90618158,2950.7,2947.8,0.02076268]
[1769440521576,7.01101,2950.7,2948.8,0.84777474]
[1769440521761,12.90818158,2950.9,2949.2,0.86842852]
[1769440521971,12.90818158,2950.9,2948.4,0.02076268]
[1769440521972,11.277883,2950.8,2947.7,0.02076268]
[1769440522185,12.90618158,2950.5,2947.0,0.02076268]
[1769440522477,12.90618158,2950.5,2947.4,3.41357491]
[1769440522648,12.90618158,2950.3,2948.2,0.02076268]
[1769440522847,12.90618158,2950.3,2948.0,0.02076268]
[1769440523047,12.90618158,2950.3,2948.3,0.02076268]
[1769440523246,12.90618158,2950.3,2948.0,0.02076268]
[1769440523682,12.90618158,2950.3,2948.2,0.02076268]
[1769440523861,12.90618158,2950.3,2947.7,0.84810182]
[1769440524052,12.90618158,2950.1,2947.7,0.84811887]
[1769440524376,12.90618158,2949.9,2946.5,0.02076268]
[1769440524592,12.90618158,2949.9,2947.6,0.8481393]
[1769440524787,12.90618158,2949.9,2947.8,0.02076268]
[1769440525090,0.71,2950.2,2948.4,0.02076268]
[1769440525449,13.61618158,2950.2,2947.8,0.02076268]
[1769440525688,13.61618158,2950.2,2948.2,0.02076268]
[1769440525980,13.61618158,2950.2,2948.2,0.84797503]
[1769440526144,14.46358306,2950.2,2948.2,0.84797503]
[1769440526345,14.46358306,2950.2,2946.9,0.02076268]
[1769440526553,12.90618158,2950.0,2946.9,0.02076268]
[1769440526759,12.90618158,2950.0,2947.2,0.84826064]
[1769440526956,8.20440933,2950.2,2946.9,0.02076268]
[1769440526957,12.90618158,2949.1,2946.9,0.02076268]
[1769440527187,12.90618158,2950.1,2947.7,0.02076268]
[1769440527349,12.90618158,2950.1,2947.3,0.02076268]
[1769440527350,13.75361048,2950.1,2947.8,0.02076268]
[1769440527548,13.75361048,2950.1,2947.3,0.02076268]
[1769440527867,13.75361048,2950.1,2947.7,0.02076268]
[1769440528067,12.90618158,2949.7,2947.6,0.84814764]
[1769440528367,12.90618158,2949.7,2946.9,0.02076268]
[1769440528575,12.90618158,2949.7,2946.9,3.39329273]
[1769440528750,12.90618158,2949.7,2947.2,0.02076268]
[1769440529082,12.90618158,2949.7,2947.2,0.84824549]
[1769440529248,12.90618158,2949.7,2946.5,0.25433298]
[1769440529249,12.90618158,2949.5,2946.5,0.02076268]
[1769440529448,12.90618158,2949.5,2946.9,0.84834416]
[1769440529682,12.90618158,2949.5,2946.8,0.02076268]
[1769440529889,12.90618158,2949.5,2946.4,0.02076268]
[1769440530055,12.90618158,2949.3,2946.5,0.84846427]
[1769440530256,12.90618158,2949.1,2946.5,0.84846427]
[1769440530465,12.90618158,2949.1,2947.0,0.02076268]
[1769440530660,12.90618158,2949.1,2946.5,0.84846427]
[1769440531066,12.90618158,2948.9,2945.9,0.02076268]
[1769440531268,12.90618158,2948.7,2946.0,14.5]
[1769440531481,6.64700785,2949.2,2946.0,14.5]
[1769440531482,12.90618158,2948.5,2946.3,0.86926843]
[1769440531663,12.90618158,2948.5,2946.4,0.02076268]
[1769440531863,12.90618158,2948.5,2946.4,0.86924333]
[1769440532085,12.90618158,2948.5,2946.1,1.45207627]
[1769440532086,12.90618158,2948.3,2946.1,1.45207627]
[1769440532394,12.90618158,2948.3,2946.1,2.321415]
[1769440532601,3.39167005,2948.5,2947.3,0.001]
[1769440532602,12.90618158,2948.1,2947.3,0.001]
[1769440534489,13.75420155,2948.1,2946.2,2.02157329]
[1769440534671,12.90618158,2948.1,2946.4,0.84847667]
[1769440534873,13.75419531,2948.1,2946.2,2.02157329]
[1769440535064,12.90618158,2948.1,2946.4,0.84847194]
[1769440535259,12.90618158,2948.1,2946.3,3.70184804]
[1769440535475,13.75398168,2948.9,2946.5,0.86921622]
[1769440536166,12.90618158,2949.3,2947.1,0.84829154]
[1769440536366,12.90618158,2949.1,2946.6,0.84841243]
[1769440536616,12.90618158,2948.9,2946.7,15.34840351]
[1769440536777,12.90618158,2948.9,2946.8,0.84837564]
[1769440536976,12.90618158,2948.9,2946.7,14.5]
[1769440537194,12.90618158,2948.9,2946.7,15.34840568]
[1769440537514,12.90618158,2948.9,2947.0,0.84830345]
[1769440537671,12.90618158,2948.9,2947.2,0.02076268]
[1769440537880,0.84763002,2949.4,2947.2,0.02076268]
[1769440538099,0.84763002,2949.4,2947.1,15.77245306]
[1769440538100,13.7538116,2949.4,2947.1,15.77245306]
[1769440538402,13.7538116,2949.4,2947.1,0.42416152]
[1769440538575,13.7538116,2949.4,2946.6,0.84841277]
[1769440538770,12.90618158,2949.2,2946.3,1.13551717]
[1769440538994,12.90618158,2949.0,2946.4,0.84848599]
[1769440539186,0.84763002,2949.4,2946.3,1.13551736]
[1769440539187,12.90618158,2948.8,2946.3,1.13551736]
[1769440539383,12.90618158,2948.7,2946.2,14.5]
[1769440539677,12.90618158,2948.7,2945.8,0.02176268]
[1769440539678,12.90618158,2948.7,2945.8,0.001]
[1769440539879,12.90618158,2948.7,2945.8,0.8496401]
[1769440540179,12.90618158,2948.5,2945.9,15.34863394]
[1769440540384,12.90618158,2948.5,2945.9,15.34863239]
[1769440540571,12.90618158,2948.3,2946.0,1.53496324]
[1769440540771,12.90618158,2948.3,2946.2,0.02076268]
[1769440541023,13.75378286,2949.5,2947.0,0.02076268]
[1769440541170,12.90618158,2949.5,2947.4,0.02076268]
[1769440541776,12.90618158,2949.5,2947.2,0.02076268]
[1769440541978,12.90618158,2949.5,2947.3,1.45207627]
[1769440542178,13.7537984,2949.5,2947.4,0.86896787]
[1769440542486,12.90618158,2949.5,2947.6,0.02076268]
[1769440542682,13.7537855,2949.5,2947.6,0.02076268]
[1769440542990,14.46463556,2950.1,2947.4,0.84820519]
[1769440543196,12.90618158,2949.9,2947.5,0.56931022]
[1769440543706,13.75340945,2950.8,2948.2,0.02076268]
[1769440543905,13.75340945,2950.8,2948.4,0.02076268]
[1769440544105,13.75340945,2950.8,2948.7,0.02076268]
[1769440544315,13.75342023,2950.8,2948.7,0.84782903]
[1769440544626,13.75341209,2950.8,2948.8,0.02076268]
[1769440544985,13.75341209,2950.8,2948.5,0.84786791]
[1769440545192,0.002,2948.9,2948.4,0.84790081]
[1769440545391,0.002,2950.1,2948.6,0.84785322]
[1769440545922,0.002,2950.1,2947.9,0.86881938]
[1769440546145,0.002,2950.1,2948.7,0.8478127]
[1769440546302,0.002,2950.1,2948.8,14.5]
[1769440546485,0.002,2950.1,2948.9,1.45]
[1769440546687,0.002,2950.1,2948.3,0.02076268]
[1769440546996,0.002,2950.1,2948.5,0.02076268]
[1769440547208,19.8544717,2957.4,2949.8,0.02076268]
[1769440547209,12.90618158,2952.7,2949.8,0.02076268]
[1769440547536,0.84674257,2952.5,2950.5,0.02076268]
[1769440547689,0.84879757,2952.3,2949.8,0.02076268]
[1769440547887,13.75497915,2952.3,2949.9,14.52076268]
[1769440548127,12.90618158,2952.2,2950.0,1.45207627]
[1769440548333,13.75303636,2952.1,2950.0,1.45207627]
[1769440548607,13.75303636,2952.1,2949.2,0.02076268]
[1769440548608,13.75303636,2952.1,2949.5,0.02076268]
[1769440548806,13.75303636,2952.1,2949.7,0.02076268]
[1769440549010,13.75303636,2952.1,2949.6,14.5]
[1769440549503,13.75303636,2952.1,2949.5,0.84758855]
[1769440549687,13.75303636,2952.1,2949.8,0.02076268]
[1769440549884,13.82033096,2952.0,2949.0,0.02076268]
[1769440550118,13.82033096,2952.0,2949.2,0.02076268]
[1769440550323,13.82033096,2951.8,2949.5,0.2335703]
[1769440550498,13.82033096,2951.8,2950.2,0.02076268]
[1769440550826,0.002,2952.3,2950.8,0.02076268]
[1769440551018,0.002,2952.3,2951.0,0.02076268]
[1769440551195,0.002,2952.3,2950.4,0.02076268]
[1769440551196,0.84880608,2952.3,2950.4,0.02076268]
[1769440551402,0.002,2952.3,2950.7,0.02076268]
[1769440551589,0.002,2952.3,2950.7,1.45207627]
[1769440551788,0.84880931,2952.3,2950.7,1.45207627]
[1769440551986,14.66914027,2952.3,2949.8,0.02076268]
[1769440552206,14.66914027,2952.3,2949.9,14.5]
[1769440552750,14.66914027,2952.3,2949.6,3.41094143]
[1769440552944,14.66914027,2952.3,2949.2,0.02076268]
[1769440552945,13.82033096,2952.1,2949.2,0.84767935]
[1769440553108,13.82033096,2952.1,2948.8,0.02076268]
[1769440553308,13.82033096,2952.2,2949.3,0.84763819]
[1769440553612,13.82033096,2952.2,2949.9,0.84748256]
[1769440553908,13.82033096,2952.2,2949.4,15.34761872]
[1769440554134,13.82033096,2952.2,2949.4,14.5]
[1769440554326,13.82033096,2952.0,2949.5,0.84760128]
[1769440554637,13.82033096,2952.0,2949.6,1.53476013]
[1769440554844,19.566331,2951.5,2948.4,0.02076268]
[1769440555029,14.53033096,2951.4,2948.3,0.8479386]
[1769440555218,13.82033096,2951.4,2948.7,0.84780854]
[1769440555539,13.82033096,2951.4,2948.4,15.34790679]
[1769440555744,0.71,2951.7,2948.5,1.53479068]
[1769440555745,13.82033096,2951.2,2948.5,1.53479068]
[1769440556041,13.82033096,2951.2,2947.5,0.56931022]
[1769440556042,13.82033096,2950.4,2947.5,0.56931022]
[1769440556253,13.82033096,2950.4,2947.9,0.84806133]
[1769440556254,13.82033096,2950.2,2947.9,0.84806133]
[1769440556416,13.82033096,2950.2,2947.6,14.52076268]
[1769440556417,13.82033096,2950.2,2947.8,0.86884807]
[1769440556825,13.82033096,2950.2,2947.7,0.001]
[1769440557007,13.82033096,2950.0,2947.7,0.001]
[1769440557212,13.82033096,2949.8,2947.7,0.001]
[1769440557555,14.53033096,2949.7,2947.7,0.001]
[1769440557905,13.82033096,2949.7,2947.8,0.84808216]
[1769440558108,13.82033096,2949.7,2947.8,0.84808567]
[1769440558411,13.82033096,2949.5,2947.7,0.001]
[1769440559160,13.82033096,2949.3,2946.3,0.02076268]
[1769440559362,13.82033096,2949.1,2946.1,0.02076268]
[1769440559638,13.82033096,2949.1,2946.4,0.84949277]
[1769440559844,13.82033096,2949.1,2946.4,0.001]
[1769440560030,13.82033096,2948.9,2946.4,0.001]
[1769440560345,13.82033096,2948.5,2946.4,0.001]
[1769440560518,13.82033096,2948.1,2946.4,0.001]
[1769440561634,14.66819096,2948.6,2946.4,0.001]
[1769440562645,13.82033096,2948.6,2946.5,0.02076268]
[1769440562810,14.66819104,2948.6,2946.5,0.02076268]
[1769440563011,14.66819104,2948.6,2946.4,0.001]
[1769440563375,13.82033096,2948.3,2946.4,0.001]
[1769440564346,13.82033096,2948.1,2946.4,0.001]
[1769440564509,13.82033096,2947.7,2946.4,0.001]
[1769440564713,0.84797503,2948.2,2946.4,0.001]
[1769440564944,14.24431848,2948.1,2946.4,0.001]
[1769440565718,13.82033096,2948.1,2946.4,0.001]
[1769440566032,3.51842307,2949.5,2946.4,0.001]
[1769440566033,13.82033096,2947.9,2946.4,0.001]
[1769440566233,13.82033096,2947.7,2946.4,0.001]
[1769440567366,43.94833096,2947.6,2945.8,0.001]
[1769440567661,13.82033096,2947.3,2944.3,0.84908023]
[1769440567863,13.82033096,2947.1,2944.0,0.84918151]
[1769440568065,0.128,2947.0,2943.4,10.03994356]
[1769440568265,13.82033096,2946.5,2943.6,0.84929946]
[1769440568434,13.82033096,2946.3,2943.6,0.84929946]
[1769440568635,13.82033096,2946.3,2944.3,0.02076268]
[1769440568835,0.711,2946.5,2944.0,0.02076268]
[1769440569034,13.82033096,2946.4,2943.6,0.84929946]
[1769440569270,13.82033096,2946.3,2943.7,0.42683712]
[1769440570547,14.66888163,2946.2,2943.7,1.27608936]
[1769440570753,14.66888163,2946.2,2943.7,0.42683712]
[1769440570951,14.66888163,2946.2,2943.5,0.001]
[1769440571347,14.66888163,2946.2,2943.7,0.84926545]
[1769440571686,14.66888163,2946.2,2943.5,0.001]
[1769440571869,15.37988163,2946.2,2943.8,0.84924247]
[1769440572047,15.37988163,2946.2,2943.6,0.84928337]
[1769440572237,15.37988163,2946.2,2943.7,0.87002377]
[1769440572238,13.82033096,2946.1,2943.7,0.87002377]
[1769440572442,0.84843125,2946.7,2944.5,0.84904058]
[1769440572648,0.84843125,2946.7,2943.7,0.02076268]
[1769440572649,14.66876221,2946.7,2943.7,0.02076268]
[1769440572945,13.82033096,2946.5,2943.5,0.001]
[1769440573139,13.82033096,2946.3,2943.6,0.02076268]
[1769440573346,13.82033096,2946.3,2943.8,0.84924086]
[1769440573547,13.82033096,2946.3,2944.1,0.84914661]
[1769440573877,13.82033096,2946.3,2943.8,0.84924197]
[1769440574175,13.82033096,2946.3,2943.5,0.001]
[1769440574679,13.82033096,2946.1,2943.5,0.001]
[1769440575375,14.53133096,2946.0,2943.5,0.001]
[1769440576275,13.82033096,2945.9,2943.5,0.001]
[1769440576476,13.82033096,2945.7,2943.5,0.001]
[1769440578847,14.66902784,2945.7,2943.5,0.001]
[1769440581184,14.66902784,2945.7,2943.7,0.001]
[1769440581393,12.82933183,2945.6,2943.7,0.001]
[1769440582079,12.82933183,2945.4,2943.7,0.001]
[1769440582284,0.711,2945.5,2943.1,0.001]
[1769440582285,10.503281,2945.1,2943.1,0.001]
[1769440582474,12.82933183,2944.8,2942.1,0.02392616]
[1769440582659,13.67834358,2944.6,2942.1,0.02392616]
[1769440583147,14.38934358,2944.6,2942.3,3.39867676]
[1769440583347,14.38934358,2944.6,2942.3,0.84965444]
[1769440583559,14.38934358,2944.6,2942.1,0.02392616]
[1769440583947,13.67834358,2944.6,2942.4,0.84963753]
[1769440584280,12.82933183,2944.4,2942.1,0.87364411]
[1769440584452,12.82933183,2944.4,2942.1,0.02392616]
[1769440584651,12.82933183,2944.2,2942.1,0.02392616]
[1769440584875,12.82933183,2944.1,2942.1,0.02392616]
[1769440586151,12.82933183,2944.1,2942.3,0.84965992]
[1769440586377,12.82933183,2944.1,2942.1,3.42282694]
[1769440586378,12.82933183,2944.1,2942.1,0.02392616]
[1769440586580,12.82933183,2943.9,2942.1,0.02392616]
[1769440586782,12.82933183,2943.8,2942.1,0.02392616]
[1769440587083,12.82933183,2943.8,2942.1,1e-08]
[1769440587305,12.82933183,2943.1,2941.3,0.001]
[1769440587494,12.82933183,2942.9,2941.3,0.001]
[1769440587697,12.82933183,2942.6,2941.3,0.001]
[1769440588700,13.6789495,2942.5,2941.3,0.001]
[1769440589006,12.82933183,2942.5,2941.3,0.001]
[1769440589628,12.82933183,2942.9,2941.3,0.001]
[1769440590677,13.67886288,2942.8,2941.3,0.001]
[1769440590878,12.82933183,2943.1,2941.3,0.001]
[1769440591080,13.67878034,2943.1,2941.3,0.001]
[1769440592313,12.82933183,2942.9,2940.0,0.85032406]
[1769440592508,12.82933183,2942.7,2940.0,0.85032406]
[1769440592713,0.84955992,2942.7,2940.2,12.01078487]
[1769440593010,0.712,2942.8,2940.2,12.01078487]
[1769440593011,14.39088197,2942.8,2940.2,12.01078487]
[1769440593512,14.39088197,2942.8,2941.5,0.001]
[1769440595381,0.84950219,2942.9,2941.5,0.001]
[1769440595584,1.61404376,2942.9,2941.5,0.001]
[1769440596886,0.8494031,2943.3,2941.5,0.001]
[1769440597180,13.6785743,2943.8,2941.5,0.001]
[1769440598286,13.6785743,2943.8,2941.2,11.16050258]
[1769440599014,13.6785743,2943.8,2941.2,12.01047655]
[1769440599189,13.6785743,2943.8,2941.2,25.66050258]
[1769440599385,12.82933183,2943.6,2941.3,2.65105067]
[1769440599623,12.82933183,2943.6,2941.2,0.84998731]
[1769440599824,12.82933183,2943.6,2941.2,15.34998731]
[1769440600124,12.82933183,2943.6,2941.2,15.34997953]
[1769440600285,12.82933183,2943.6,2941.0,0.85003557]
[1769440600492,12.82933183,2943.4,2941.0,0.8500485]
[1769440600686,0.712,2943.5,2940.6,12.01064904]
[1769440600687,12.82933183,2943.3,2940.6,12.01064904]
[1769440600905,12.82933183,2943.3,2940.6,11.16050258]
[1769440600906,0.8494156,2943.2,2940.6,11.16050258]
[1769440601214,12.82933183,2943.1,2940.7,0.85013772]
[1769440601430,12.82933183,2943.1,2940.1,0.42516846]
[1769440601632,12.82933183,2943.1,2939.7,0.001]
[1769440601633,12.95733183,2942.7,2939.7,0.001]
[1769440601783,12.82933183,2942.5,2939.8,0.87114353]
[1769440601982,12.82933183,2942.5,2939.7,0.17840244]
[1769440602196,12.82933183,2942.5,2939.7,0.001]
[1769440602520,12.82933183,2942.3,2939.7,0.001]
[1769440602694,12.82933183,2942.3,2940.0,0.02076268]
[1769440602889,12.82933183,2942.3,2939.7,0.001]
[1769440602890,0.84981983,2941.8,2939.7,0.001]
[1769440603090,12.82933183,2941.5,2939.7,0.001]
[1769440603837,12.82933183,2941.5,2938.4,0.0156651]
[1769440603838,12.82933183,2941.3,2938.4,0.0156651]
[1769440603999,0.67545289,2941.5,2938.4,0.0156651]
[1769440604000,12.82933183,2940.9,2938.4,0.0156651]
[1769440604190,13.54133183,2940.9,2938.4,0.0156651]
[1769440604390,13.54133183,2940.9,2938.5,0.8507544]
[1769440604591,13.54133183,2940.9,2938.4,14.53642778]
[1769440604592,13.54133183,2940.9,2938.6,2.41022262]
[1769440604816,12.82933183,2940.9,2938.6,2.41020799]
[1769440604990,12.82933183,2940.9,2939.0,0.02076268]
[1769440605339,13.67941486,2940.9,2938.8,0.85068405]
[1769440605636,13.67941486,2940.9,2938.6,1.53871822]
[1769440605637,12.82933183,2940.7,2938.6,1.53871822]
[1769440605793,12.82933183,2940.7,2939.0,0.001]
[1769440605993,13.54133183,2940.7,2939.0,0.001]
[1769440607087,12.82933183,2940.7,2939.0,0.001]
[1769440607313,13.67948111,2940.7,2939.0,0.001]
[1769440608760,12.82933183,2940.7,2939.0,0.001]
[1769440608913,10.0,2943.9,2939.0,0.001]
[1769440608914,14.08170676,2941.2,2939.0,0.001]
[1769440609365,13.23171356,2941.2,2939.0,0.001]
[1769440609573,13.23171356,2941.2,2939.1,0.02076268]
[1769440609864,13.23171356,2942.0,2939.1,0.02076268]
[1769440610030,13.23171356,2941.8,2939.1,1.14116547]
[1769440610229,13.23171356,2941.8,2939.5,0.02076268]
[1769440610430,13.23171356,2941.8,2939.7,0.02076268]
[1769440610629,6.6665492,2942.3,2939.9,0.02076268]
[1769440610630,13.23171356,2942.3,2939.9,0.02076268]
[1769440610838,13.23171356,2942.3,2940.1,0.02076268]
[1769440611041,13.23171356,2942.9,2940.4,0.85022445]
[1769440611217,13.23171356,2942.9,2940.5,0.02076268]
[1769440611542,13.23171356,2942.9,2940.7,0.02076268]
[1769440611743,13.23171356,2942.9,2940.6,14.5]
[1769440611914,13.23171356,2942.9,2940.7,0.02076268]
[1769440612118,14.08104259,2943.5,2940.8,1.45207627]
[1769440612547,6.66629843,2943.1,2940.8,1.45207627]
[1769440612843,13.23171356,2943.0,2940.8,1.45207627]
[1769440613031,0.84950219,2942.9,2940.8,2.30216938]
[1769440613351,13.23171356,2943.0,2940.9,0.02076268]
[1769440613531,13.23171356,2943.5,2941.1,0.02076268]
[1769440613730,13.23171356,2943.5,2941.0,0.23229321]
[1769440614915,13.23171356,2943.5,2941.1,0.02076268]
[1769440615324,14.08107144,2943.4,2941.2,0.8499932]
[1769440615519,13.23171356,2943.4,2941.5,0.02076268]
[1769440615726,0.002,2943.6,2941.7,0.02076268]
[1769440616125,0.85130195,2943.6,2941.7,0.02076268]
[1769440616311,14.08301551,2943.6,2941.3,0.02076268]
[1769440616528,13.23171356,2943.5,2941.3,0.02076268]
[1769440616725,13.23171356,2943.5,2941.7,0.02076268]
[1769440617028,13.23171356,2943.5,2941.5,0.02076268]
[1769440617237,0.84935788,2943.4,2941.2,0.8499932]
[1769440617560,14.08107144,2943.4,2941.2,0.8499932]
[1769440617765,13.23171356,2943.4,2941.5,0.02076268]
[1769440618061,0.002,2943.6,2941.7,0.02076268]
[1769440618265,0.002,2943.8,2942.4,0.02076268]
[1769440618438,0.002,2944.8,2942.8,0.02076268]
[1769440618640,0.002,2944.8,2943.0,0.02076268]
[1769440618850,0.002,2944.8,2943.0,1.47491522]
[1769440619429,0.002,2944.8,2943.0,2.32437703]
[1769440620151,0.002,2944.8,2943.2,0.02076268]
[1769440620658,0.002,2944.8,2943.0,2.32437703]
[1769440620659,0.002,2944.8,2943.0,2.30361435]
[1769440620860,0.002,2944.8,2943.0,2.32437703]
[1769440621182,0.002,2944.8,2943.2,0.02076268]
[1769440621389,0.002,2944.8,2943.3,0.84938674]
[1769440622182,0.002,2944.8,2943.3,15.34938674]
[1769440622493,0.002,2944.8,2943.3,14.5]
[1769440622781,13.23371356,2944.8,2942.5,3.39846649]
[1769440622979,0.002,2944.8,2943.4,0.02076268]
[1769440623499,0.002,2944.8,2943.6,0.02076268]
[1769440623684,0.002,2944.8,2943.8,0.02076268]
[1769440623977,0.002,2944.8,2944.0,0.02076268]
[1769440624362,0.002,2944.8,2943.8,0.02076268]
[1769440624682,0.002,2944.8,2943.8,1.45415254]
[1769440625358,0.002,2944.8,2943.8,2.30338349]
[1769440625544,0.002,2945.0,2943.8,2.32414617]
[1769440625744,0.002,2945.2,2943.8,2.32414617]
[1769440625949,0.002,2945.2,2944.0,0.02076268]
[1769440626149,0.002,2945.2,2944.0,0.23449088]
[1769440626954,0.002,2945.2,2944.2,1.8]
[1769440628207,3.39443312,2946.2,2944.2,1.8]
[1769440628208,0.8505123,2946.4,2944.3,0.02076268]
[1769440628507,14.08223295,2946.4,2944.3,0.02076268]
[1769440628674,13.23371356,2946.4,2944.3,0.02076268]
[1769440628879,13.23171356,2946.2,2944.2,1.8]
[1769440629376,13.23171356,2946.0,2944.2,1.8]
[1769440629802,0.002,2946.4,2944.4,0.001]
[1769440630005,14.08220766,2946.4,2944.4,0.001]
[1769440630183,14.08222193,2946.4,2944.4,0.001]
[1769440630509,13.23371356,2946.4,2944.4,0.26601175]
[1769440630718,13.23371356,2946.4,2944.7,0.02076268]
[1769440630878,13.23371356,2946.4,2944.4,0.26601175]
[1769440631074,14.08221916,2946.4,2944.4,0.26601175]
[1769440631312,14.08222558,2946.4,2944.5,0.02076268]
[1769440631511,14.08222558,2946.4,2944.4,0.26601175]
[1769440631888,14.08222558,2946.4,2944.5,0.8490364]
[1769440632211,14.08220705,2946.4,2944.5,0.86979908]
[1769440632447,13.23371356,2946.4,2944.7,0.02076268]
[1769440632745,0.002,2946.4,2944.9,0.02076268]
[1769440632951,0.002,2946.4,2945.1,0.02076268]
[1769440633307,0.002,2946.4,2945.2,14.5]
[1769440633506,0.002,2946.4,2945.3,2.32162793]
[1769440634038,3.39473286,2947.5,2945.7,0.02076268]
[1769440634039,0.002,2947.5,2945.7,0.02076268]
[1769440634713,0.85017898,2947.5,2945.7,0.02076268]
[1769440635314,13.23171356,2947.4,2945.6,14.5]
[1769440635514,13.23171356,2947.4,2945.3,1.45207627]
[1769440635515,13.23171356,2947.2,2945.3,1.45207627]
[1769440635715,13.23171356,2947.2,2944.9,0.02076268]
[1769440635716,13.23171356,2947.2,2945.0,0.84888026]
[1769440635937,13.23171356,2947.2,2944.9,0.02076268]
[1769440635938,13.23171356,2947.2,2945.1,14.5]
[1769440636340,13.23171356,2947.0,2944.4,3.6622879]
[1769440636538,13.23171356,2947.0,2944.8,0.84894381]
[1769440636846,13.23171356,2946.8,2944.5,14.5]
[1769440637212,13.23171356,2946.8,2944.4,1.11506222]
[1769440637213,13.23171356,2946.8,2944.4,0.26601175]
[1769440637407,13.23171356,2946.6,2944.4,1.11507702]
[1769440637638,13.23171356,2946.6,2944.4,0.26601175]
[1769440637912,13.23171356,2946.4,2944.5,0.02076268]
[1769440638113,13.23171356,2946.4,2944.6,0.02076268]
[1769440638316,0.84839692,2946.8,2944.9,0.02076268]
[1769440638631,0.84839692,2946.8,2944.4,15.37083107]
[1769440638632,13.83635546,2946.8,2944.4,15.37083107]
[1769440638815,13.83635546,2946.8,2944.4,0.85005901]
[1769440639015,13.83635546,2946.8,2944.8,1.8]
[1769440639016,12.98795854,2946.6,2944.8,1.8]
[1769440639635,13.83642281,2946.5,2944.8,1.8]
[1769440642930,13.83643524,2946.5,2944.8,1.8]
[1769440643548,1.2598,2945.0,2944.8,1.8]
[1769440643751,0.002,2946.6,2944.8,2.64895266]
[1769440643954,0.002,2946.6,2945.6,0.02076268]
[1769440644956,0.002,2946.6,2945.4,14.5]
[1769440645471,0.002,2946.6,2945.5,0.02076268]
[1769440645773,0.002,2947.5,2946.5,0.02076268]
[1769440645926,0.002,2947.5,2946.7,0.02076268]
[1769440646266,0.002,2948.0,2946.9,0.02076268]
[1769440646826,0.002,2948.0,2946.7,14.5]
[1769440647053,0.002,2948.0,2946.8,0.02076268]
[1769440647224,0.002,2948.0,2947.0,0.02076268]
[1769440647644,0.002,2948.0,2947.0,0.86905767]
[1769440648047,0.002,2948.9,2947.3,0.02076268]
[1769440648242,0.002,2948.9,2947.2,1.8]
[1769440648447,0.002,2948.9,2947.3,0.02076268]
[1769440648647,0.002,2948.9,2947.4,0.18207627]
[1769440648843,12.98795854,2948.8,2947.4,0.18207627]
[1769440649083,12.98795854,2948.8,2947.2,1.8]
[1769440649244,0.002,2948.9,2947.3,0.02076268]
[1769440649573,0.002,2948.9,2947.2,1.8]
[1769440649775,12.98995854,2948.9,2947.2,1.8]
[1769440651350,12.98995854,2948.9,2946.6,15.34841659]
[1769440651551,12.98795854,2948.8,2946.7,2.38324468]
[1769440651769,12.98795854,2948.6,2946.7,2.3832471]
[1769440651964,12.98795854,2948.6,2946.7,0.84839654]
[1769440652171,12.98795854,2948.6,2946.8,0.02076268]
[1769440652685,12.98795854,2948.6,2946.7,0.84839964]
[1769440652850,12.98795854,2948.6,2946.7,0.848405]
[1769440653192,12.98795854,2948.6,2946.6,0.8484329]
[1769440653357,12.98795854,2948.6,2946.9,1.8]
[1769440653744,13.83584377,2948.6,2946.9,2.64834131]
[1769440653968,12.98795854,2948.6,2946.9,2.64834131]
[1769440655086,0.002,2948.7,2947.2,0.02076268]
[1769440655771,0.002,2948.7,2947.3,0.84823397]
[1769440655976,0.002,2948.7,2947.4,0.42620314]
[1769440656496,0.002,2948.9,2947.9,0.02076268]
[1769440656660,0.002,2948.9,2947.6,0.02076268]
[1769440656866,0.002,2948.9,2948.2,0.02076268]
[1769440657054,1.11655902,2949.9,2948.8,0.02076268]
[1769440657256,1.11655902,2949.9,2948.5,0.02076268]
[1769440657482,1.11655902,2949.9,2948.7,0.02076268]
[1769440657895,1.11655902,2949.9,2948.7,0.86859033]
[1769440658307,1.11655902,2949.9,2948.8,0.44675421]
[1769440658510,1.11655902,2949.9,2948.8,0.02076268]
[1769440658719,1.11655902,2949.9,2949.0,0.02076268]
[1769440658882,1.11655902,2949.9,2948.8,0.02076268]
[1769440659081,1.11655902,2949.9,2949.0,0.02076268]
[1769440659305,1.11655902,2949.9,2948.0,0.02076268]
[1769440659683,12.98795854,2951.5,2949.2,0.02076268]
[1769440659884,13.35726682,2951.5,2949.8,0.02076268]
[1769440660108,14.20430115,2951.5,2949.2,0.02076268]
[1769440660295,14.20430115,2951.5,2949.4,0.02076268]
[1769440660495,12.98795854,2951.3,2948.8,0.84778284]
[1769440660684,12.98795854,2951.1,2948.5,0.86863499]
[1769440660885,12.98795854,2951.1,2948.8,0.84780244]
[1769440661106,12.98795854,2951.1,2948.7,0.02076268]
[1769440661302,12.98795854,2951.1,2948.4,0.02076268]
[1769440661512,6.52407758,2950.8,2948.0,0.8687792]
[1769440661728,13.35726682,2950.7,2948.2,0.02076268]
[1769440661897,12.98795854,2950.5,2948.2,0.86872763]
[1769440662312,12.98795854,2950.5,2948.4,0.02076268]
[1769440662645,12.98795854,2950.5,2948.2,0.86872634]
[1769440662798,12.98795854,2950.5,2948.3,0.02076268]
[1769440662994,12.98795854,2950.3,2947.7,0.02076268]
[1769440663303,12.98795854,2950.3,2948.1,0.02076268]
[1769440663531,12.98795854,2950.3,2948.4,1.8]
[1769440663728,13.69895854,2950.3,2948.4,1.8]
[1769440663916,12.98795854,2950.1,2948.4,1.8]
[1769440664119,12.98795854,2949.7,2947.0,0.02076268]
[1769440664323,12.98795854,2949.5,2946.6,0.02076268]
[1769440664627,12.98795854,2949.3,2946.6,0.86918184]
[1769440664846,12.98795854,2949.3,2947.5,0.02076268]
[1769440665128,12.98795854,2949.3,2947.0,0.02076268]
[1769440665318,12.98795854,2949.1,2946.9,0.86909586]
[1769440665516,12.98795854,2949.1,2946.9,0.02076268]
[1769440665728,12.98795854,2949.1,2946.9,0.84832846]
[1769440665901,12.98795854,2948.9,2946.9,0.84834911]
[1769440666099,12.98795854,2948.9,2947.7,0.001]
[1769440666427,12.98795854,2948.7,2946.5,0.84846372]
[1769440666631,12.98795854,2948.7,2945.7,0.02076268]
[1769440666798,12.98795854,2948.5,2945.7,0.02076268]
[1769440666998,12.98795854,2948.1,2945.2,0.8488375]
[1769440667227,12.98795854,2947.9,2945.6,0.84870312]
[1769440667537,12.98795854,2947.9,2945.1,3.3954423]
[1769440667739,12.98795854,2947.9,2945.6,0.84871752]
[1769440667926,12.98795854,2947.7,2945.3,0.84880996]